Cogmind - Beta 15 @@@ ROGUE MODE // 2025.05.13 @ 14:10:55 Player: TheTravelingGuy Result: Destroyed by K2-TEL(j) with Overtuned Pulse Rifle Performance ------------- Evolutions (0) 0 Regions Visited (4) 800 Robots Destroyed (24) 120 Value Destroyed (618) 618 Prototype IDs (12) 240 Alien Tech Used (0) 0 Bonus (658) 658 TOTAL SCORE: 2436 Bonus ------- Registered with UFD 300 Met Optimus in HQ 500 Friendly Fire -142 Cogmind --------- Core Integrity 0/250 Matter 290/300 Energy 56/100 System Corruption 0% Temperature Hot (212) Movement Walking (110) Location -9/Scraptown Parts ------- > --- POWER (1) -------- (None) > --- PROPULSION (2) --- Overtuned Titanium Leg Myomer Leg > --- UTILITY (2) ------ Scrap Suit > --- WEAPON (2) ------- Overtuned Pulse Rifle > --- INVENTORY (5) ---- Machine Analyzer Makeshift Hacking Suite Makeshift Hacking Suite Peak State ------------ > --- POWER ------------ Light Angular Momentum Engine > --- PROPULSION ------- Myomer Leg Myomer Leg > --- UTILITY ---------- Large Storage Unit Makeshift Light Armor Plating > --- WEAPON ----------- Gauss Rifle Heavy Battle Rifle > --- INVENTORY -------- Carbon-fiber Leg Carbon-fiber Leg Overtuned Titanium Leg Improved Titanium Leg Scrap Suit Machine Analyzer Experimental Signal Interpreter Target Analyzer Makeshift Hacking Suite Makeshift Hacking Suite Makeshift Hacking Suite Makeshift Hacking Suite Overtuned Barrage Gun DRS Beacon [Rating: 38] Favorites ----------- Power Ion Engine Engine Ion Engine Propulsion Myomer Leg Leg Myomer Leg Utility Large Storage Unit Device Seismic Detector Storage Large Storage Unit Protection Makeshift Light Armor Plating Weapon Light Assault Rifle Energy Gun Small Laser Energy Cannon Heavy Particle Cannon Ballistic Gun Light Assault Rifle Launcher Grenade Launcher Build | -11 -10 -10 -10 -9 ------- Run | Yrd Mat Min Sub Scr Slots Evolved . | . . . . . Power . | . . . . . Propulsion . | . . . . . Utility . | . . . . . Weapon . | . . . . . Parts Attached 30 | 7 3 . 4 16 Power 5 | 1 . . 1 3 Engine 5 | 1 . . 1 3 Core . | . . . . . Reactor . | . . . . . Propulsion 5 | 2 . . 2 1 Treads . | . . . . . Leg 5 | 2 . . 2 1 Wheel . | . . . . . Hover . | . . . . . Flight . | . . . . . Utility 9 | 1 2 . 1 5 Device 4 | . 1 . . 3 Storage 2 | 1 1 . . . Processor . | . . . . . Hackware . | . . . . . Protection 3 | . . . 1 2 Artifact . | . . . . . Weapon 11 | 3 1 . . 7 Energy Gun 4 | 2 . . . 2 Energy Cannon 2 | . . . . 2 Ballistic Gun 4 | 1 . . . 3 Ballistic Cannon . | . . . . . Launcher 1 | . 1 . . . Special Weapon . | . . . . . Impact Weapon . | . . . . . Slashing Weapon . | . . . . . Piercing Weapon . | . . . . . Special Melee Weapon . | . . . . . Unidentified Prototypes . | . . . . . Parts Lost 13 | . . . 2 11 Power 4 | . . . 1 3 Propulsion 2 | . . . . 2 Utility 6 | . . . 1 5 Weapon 1 | . . . . 1 Highest Loss Streak 8 | . . . 1 8 To Critical Strikes . | . . . . . Average Backups 11 | 3 7 9 12 12 Power 1 | . 1 1 1 1 Propulsion 4 | 1 4 4 5 4 Utility 3 | . . 1 3 4 Weapon 2 | . 1 3 2 2 Tool/Special . | . . . . . Unused Backups 21 | . 2 . 8 11 Power 2 | . . . 1 1 Propulsion 10 | . 2 . 6 2 Utility 6 | . . . . 6 Weapon 2 | . . . 1 1 Tool/Special 1 | . . . . 1 Average Slot Usage (%) 99 | . 100 100 96 99 Engine 13 | . 14 14 14 13 Leg 28 | . 28 28 28 28 Device 12 | . 14 14 8 12 Storage 14 | . 14 14 14 14 Energy Gun 7 | . 13 14 14 2 Energy Cannon 10 | . . . . 19 Ballistic Gun 9 | . 14 14 14 5 Peak Build Rating 38 | 6 8 8 22 38 Average Rating 20 | 4 7 7 13 29 On Entrance 8 | . 6 7 8 22 Naked Turns . | . . . . . Heaviest Build 52 | 13 28 28 32 52 Greatest Support 50 | 20 20 20 50 50 Greatest Overweight (x) 4 | 4 1 1 1 1 Average Overweight (x) . | . . 1 . . Largest Inventory Capacity 15 | 8 15 15 15 15 Average Capacity 14 | 7 14 15 15 14 Most Carried 15 | 7 10 13 15 15 Average Carried 12 | 3 7 10 13 14 Final Capacity 15 | 8 15 15 15 5 Final Carried 14 | 7 9 13 14 3 Class Distribution -------------------- 95% | Mutant 4% | Scavenger-Mutant Dominant Class ---------------- Mutant | -10/Materials Mutant | -10/Mines Mutant | -10/Subcaves Mutant | -9/Scraptown Resources | -11 -10 -10 -10 -9 ----------- Run | Yrd Mat Min Sub Scr Matter Collected 875 | 271 52 149 123 280 Remotely . | . . . . . Salvage Created 815 | 26 218 . 288 283 Parts 56 | 3 19 . 15 19 Haulers Intercepted . | . . . . . Recyclers Shooed 2 | . 2 . . . Parts Field Recycled . | . . . . . Retrieved Matter . | . . . . . Parts Self-Destructed 6 | . . . 6 . Prevented . | . . . . . Kills | -11 -10 -10 -10 -9 ------- Run | Yrd Mat Min Sub Scr Combat Hostiles Destroyed 18 | . 8 . 5 5 Guns 11 | . 5 . 4 2 Cannons 3 | . . . . 3 AOE 4 | . 3 . 1 . Classes Destroyed 13 | 1 6 . 3 3 Worker 1 | . 1 . . . Builder 1 | . 1 . . . Tunneler 1 | 1 . . . . Operator 1 | . 1 . . . Watcher 1 | . 1 . . . Swarmer 6 | . 6 . . . Grunt 3 | . 2 . 1 . Sentry 1 | . . . 1 . Subdweller 3 | . . . 3 . Ranger 1 | . . . . 1 Guru 2 | . . . . 2 Scrapper 2 | . . . . 2 Guerrilla 1 | . . . 1 . Best Kill Streak 4 | 1 4 . 2 2 Combat Bots Only 3 | . 3 . 2 2 Max Kills in Single Turn 2 | 1 2 . 1 1 Gunslinging . | . . . . . Exploded 2 | . 2 . 1 . Melee . | . . . . . Uniques/NPCs Destroyed . | . . . . . Combat | -11 -10 -10 -10 -9 -------- Run | Yrd Mat Min Sub Scr Hostile Shots Fired 172 | . 30 . 19 123 Missed 48 | . 8 . 7 33 Hits 124 | . 22 . 12 90 Projectile 124 | . 22 . 12 90 Critical Strikes 5 | . . . . 5 Damage Taken 1772 | . 199 . 207 1366 Core 267 | . 46 . 43 178 Absorbed by Shields . | . . . . . Regen/Repaired (Parts) 198 | . . . . 198 Core Remaining (%) 100 | 100 . . . . Volleys Fired 74 | 1 24 1 19 29 Largest 2 | 2 2 2 2 2 Hottest 140 | 60 60 60 60 140 Shots Fired 141 | 2 45 3 37 54 Gun 122 | 2 43 3 36 38 Cannon 16 | . . . . 16 Launcher 3 | . 2 . 1 . Special . | . . . . . Kinetic 80 | 1 22 1 18 38 Thermal 58 | 1 21 2 18 16 Explosive 3 | . 2 . 1 . Electromagnetic . | . . . . . Robot Hit Streak 12 | 1 6 . 11 12 Robot Miss Streak 9 | . 4 . 3 9 Penetration Max . | . . . . . Secondary Targets 3 | . 2 . 1 . Max Gunslinging Chain 1 | . 1 . 1 . Shots Hit Robots 82 | 1 26 . 29 26 Core Hits 44 | 1 16 . 17 10 Critical Kills . | . . . . . Critical Parts Destroyed 1 | . . . . 1 Critical Strikes 1 | . . . . 1 Destroy 1 | . . . . 1 Melee Attacks . | . . . . . Impact . | . . . . . Slashing . | . . . . . Piercing . | . . . . . Sneak Attacks . | . . . . . Combat Hostiles . | . . . . . Follow-up Attacks . | . . . . . Damage Inflicted 1600 | 11 588 . 362 639 Guns 954 | 11 287 . 294 362 Cannons 277 | . . . . 277 Explosions 367 | . 299 . 68 . Melee . | . . . . . Ramming 2 | . 2 . . . Kinetic 589 | . 119 . 108 362 Thermal 642 | 11 168 . 186 277 Explosive 271 | . 203 . 68 . Electromagnetic 96 | . 96 . . . Impact . | . . . . . Slashing . | . . . . . Piercing . | . . . . . Highest Corruption 1 | . 1 1 1 . Average Corruption 1 | . 1 1 1 . Corruption Purged . | . . . . . Corruption Blocked . | . . . . . Effects 11 | . 1 8 2 . Message Errors 3 | . 1 2 . . Matter Fused 2 | . . 1 1 . Heat Flow Errors 1 | . . . 1 . Energy Discharges 1 | . . 1 . . Data Loss (minor) 2 | . . 2 . . Misfires 1 | . . 1 . . Alerts 1 | . . 1 . . Overload Shots . | . . . . . Overflow Damage 3 | . . . . 3 Projectiles 3 | . . . . 3 Explosions . | . . . . . Melee . | . . . . . Knockbacks . | . . . . . Impact . | . . . . . Kinetic . | . . . . . Secondary . | . . . . . Self-Inflicted Damage 30 | . 13 . 17 . Shots 2 | . 1 . 1 . Rammed . | . . . . . Targets Rammed 1 | . 1 . . . Kicked 1 | . 1 . . . Crushed . | . . . . . Highest Temperature 467 | 20 76 20 149 467 Average Temperature 94 | 15 33 8 91 116 Received Heat Transfer 863 | . 42 . 72 749 Effects 2 | . . . . 2 Shutdowns 1 | . . . . 1 Energy Bleed 1 | . . . . 1 Siege Activations . | . . . . . Martial Activations . | . . . . . Shielding Activations . | . . . . . Robots Disrupted . | . . . . . Combat Hostiles . | . . . . . Robots Corrupted . | . . . . . Combat Hostiles . | . . . . . Parts Fried . | . . . . . Impact Corruptions . | . . . . . Robots Melted . | . . . . . Combat Hostiles . | . . . . . Parts Melted 2 | . . . . 2 Heat Transferred 1160 | 25 375 . 425 335 Parts Sabotaged . | . . . . . Parts Stolen . | . . . . . Parts Stripped . | . . . . . Power Chain Reactions . | . . . . . Alert | -11 -10 -10 -10 -9 ------- Run | Yrd Mat Min Sub Scr Maximum Alert Level . | . . . . . Low Security (%) 100 | 100 100 100 . . Level 1 . | . . . . . Level 2 . | . . . . . Level 3 . | . . . . . Level 4 . | . . . . . Level 5 . | . . . . . High Security . | . . . . . Max Security . | . . . . . Peak Influence 104 | 5 104 34 . . Initial 34 | . 3 34 . . Average 10 | . 27 1 . . Influence Increases 291 | 5 236 . 50 . Destroy 0b10 Robot/C 200 | . 160 . 40 . Destroy 0b10 Robot/NC 25 | 5 20 . . . Destroy Leader 32 | . 22 . 10 . Disable Machine 15 | . 15 . . . Destroy Structure 19 | . 19 . . . Influence Decreases 291 | . 153 88 50 . Entered New Map 56 | . 2 54 . . Time Decay 235 | . 151 34 50 . Squads Dispatched . | . . . . . Investigation . | . . . . . Extermination . | . . . . . Reinforcement . | . . . . . Assault . | . . . . . Garrison . | . . . . . Intercept . | . . . . . Searches Triggered . | . . . . . Construction Impeded . | . . . . . Haulers Reinforced . | . . . . . Active Scanning Responses . | . . . . . Cargo Convoy Interrupts . | . . . . . Stealth | -11 -10 -10 -10 -9 --------- Run | Yrd Mat Min Sub Scr Distress Signals 2 | . 2 . . . Communications Jammed . | . . . . . Distress Signals . | . . . . . Times Spotted 55 | . 12 . 11 32 Peak Tracking Total 12 | . 5 . 6 12 Tactical Retreats . | . . . . . Traps | -11 -10 -10 -10 -9 ------- Run | Yrd Mat Min Sub Scr Traps Triggered 1 | . 1 . . . Indirectly . | . . . . . Trap Hack Attempts . | . . . . . Triggered . | . . . . . Disarmed . | . . . . . Reprogrammed . | . . . . . Reused . | . . . . . Traps Extracted . | . . . . . Installed . | . . . . . Triggered . | . . . . . Machines | -11 -10 -10 -10 -9 ---------- Run | Yrd Mat Min Sub Scr Machines Disabled 1 | . 1 . . . Max in Single Turn 1 | . 1 . . . Machines Repaired . | . . . . . Machines Dismantled . | . . . . . Machines Sabotaged . | . . . . . Overloaded Fab Kills . | . . . . . Hacking | -11 -10 -10 -10 -9 --------- Run | Yrd Mat Min Sub Scr Machines Accessed 9 | . . . . 9 Terminals . | . . . . . Fabricators . | . . . . . Repair Stations . | . . . . . Recycling Units . | . . . . . Scanalyzers . | . . . . . Garrison Access . | . . . . . Total Hacks 66 | . . . . 66 Successful 66 | . . . . 66 Failed . | . . . . . Catastrophic . | . . . . . Database Lockouts . | . . . . . Manual . | . . . . . Terminals . | . . . . . Fabricators . | . . . . . Repair Stations . | . . . . . Recycling Units . | . . . . . Scanalyzers . | . . . . . Garrison Access . | . . . . . Terminal Hacks 66 | . . . . 66 Record 65 | . . . . 65 Proto ID Catalog 1 | . . . . 1 Fabricator Hacks . | . . . . . Repair Station Hacks . | . . . . . Recycling Unit Hacks . | . . . . . Scanalyzer . | . . . . . Garrison Access Hacks . | . . . . . Unauthorized Hacks . | . . . . . Terminals . | . . . . . Fabricators . | . . . . . Repair Stations . | . . . . . Recycling Units . | . . . . . Scanalyzers . | . . . . . Garrison Access . | . . . . . Data Cores Recovered . | . . . . . Used . | . . . . . Hacking Detections . | . . . . . Full Trace Events . | . . . . . Feedback Events . | . . . . . Feedback Blocked . | . . . . . Robot Schematics Acquired . | . . . . . Robots Built . | . . . . . Authchips . | . . . . . Time . | . . . . . Total Robot Build Rating . | . . . . . Part Schematics Acquired . | . . . . . Parts Built . | . . . . . Authchips . | . . . . . Time . | . . . . . Total Part Build Rating . | . . . . . Parts Repaired . | . . . . . Time . | . . . . . Parts Recycled . | . . . . . Recycled Matter . | . . . . . Retrieved Matter . | . . . . . Retrieved Components . | . . . . . Parts Scanalyzed . | . . . . . Part Schematics Acquired . | . . . . . Parts Damaged . | . . . . . Bothacking | -11 -10 -10 -10 -9 ------------ Run | Yrd Mat Min Sub Scr Used RIF Installer . | . . . . . Robots Hacked . | . . . . . Non-combat . | . . . . . Combat . | . . . . . Robot Hacks Applied . | . . . . . Relay Couplers Released . | . . . . . Fabnet Peak Effective % . | . . . . . Robots Rewired . | . . . . . Allies Hacked . | . . . . . Hacks Repelled . | . . . . . Allies | -11 -10 -10 -10 -9 -------- Run | Yrd Mat Min Sub Scr Total Allies . | . . . . . Largest Group . | . . . . . Highest-Rated Group . | . . . . . Highest-Rated Ally . | . . . . . Total Orders . | . . . . . Ally Attacks . | . . . . . Total Damage . | . . . . . Kills . | . . . . . Allies Corrupted . | . . . . . Allies Melted 1 | . . . 1 . Intel | -11 -10 -10 -10 -9 ------- Run | Yrd Mat Min Sub Scr Active Infowar (turns) 3871 | . 489 869 305 2208 Sensors 90 | . . . . 90 Terrain 35 | . . . . 35 Seismic 3746 | . 489 869 305 2083 Robot Analysis Total . | . . . . . Derelict Logs Recovered 2 | . . 1 1 . Drone Launches . | . . . . . Drone Recoveries . | . . . . . Exploration | -11 -10 -10 -10 -9 ------------- Run | Yrd Mat Min Sub Scr Turns Passed 4354 | 94 489 869 512 2390 Spaces Moved 2688 | 56 219 275 264 1874 Core 13 | 13 . . . . Treads . | . . . . . Legs 2675 | 43 219 275 264 1874 Wheels . | . . . . . Hover . | . . . . . Flight . | . . . . . Fastest Speed 50 | 50 120 190 120 110 Average Speed 135 | 133 181 190 147 120 Slowest Speed 250 | 250 190 190 190 190 Overloaded Moves . | . . . . . Propulsion Burnouts . | . . . . . Robots Hopped . | . . . . . Potential Cave-ins . | . . . . . Cave-ins Triggered . | . . . . . Exploration Rate (%) 39 | 5 40 51 15 88 Regions Visited 4 Branch Regions 3 Pre-discovered Areas . | . . . . . Known Exits Taken . | . . . . . Unknown Exits Taken 4 | 1 1 1 1 . Scrap Searched 6 | . . . . 6 Spaces Dug . | . . . . . Terrain Destroyed 26 | . 18 . 7 1 Melee . | . . . . . Projectile 1 | . . . . 1 AOE 25 | . 18 . 7 . Terrain Rammed . | . . . . . Walls Destroyed . | . . . . . Machines Disabled . | . . . . . Actions | -11 -10 -10 -10 -9 --------- Run | Yrd Mat Min Sub Scr Total 3282 | 70 269 620 354 1969 Wait 396 | . 12 342 38 4 Move 2684 | 55 218 274 263 1874 Hop . | . . . . . Pick Up 45 | 7 6 3 12 17 Fast Attach 13 | 6 . . . 7 Attach 9 | . 1 . 2 6 Detach 1 | . . . . 1 Swap 17 | 1 4 . 8 4 Drop 36 | . 3 . 12 21 Fire 74 | 1 24 1 19 29 Melee . | . . . . . Ram . | . . . . . Kick 1 | . 1 . . . Crush . | . . . . . Escape Stasis . | . . . . . Rewire 6 | . . . . 6 Trap . | . . . . . Miscellaneous . | . . . . . Route ------- -11/Scrapyard -10/Materials -10/Mines -10/Subcaves (discovered 2 exits: [*Mat] / *Scr) -9/Scraptown (discovered 2 exits: *Fac x2) History --------- Turn | Location | Event 26 | -11/Scrapyard | Discovered new exit (range 15) 95 | -11/Scrapyard | Entered Materials 118 | -10/Materials | Discovered new exit (range 16) 304 | -10/Materials | Build established: Mutant 584 | -10/Materials | Entered Mines 809 | -10/Mines | Assembled infested the area 814 | -10/Mines | Assisted by a Guerilla fighting off Assembled 824 | -10/Mines | Discovered new exit (range 8) 1172 | -10/Mines | Found a Scrap Suit stashed away for nefarious purposes 1175 | -10/Mines | Found Scrap Suit 1362 | -10/Mines | Learned Materials emergency access door positions 1453 | -10/Mines | Entered Subcaves 1454 | -10/Subcaves | Approached by a straggling Scientist 1690 | -10/Subcaves | Ambushed by swarm of Subdwellers 1748 | -10/Subcaves | Lost 4 allies 1910 | -10/Subcaves | Discovered new exit (range 8) 1945 | -10/Subcaves | Learned location of 1 exit from Materials 1961 | -10/Subcaves | Scientist uncovered a shortcut to Scraptown 1965 | -10/Subcaves | Entered Scraptown 1965 | -9/Scraptown | System corruption cleaned by C-Scrubber 2150 | -9/Scraptown | Visited CR-KLE's Repair Center 2158 | -9/Scraptown | CR-KLE repaired 6 parts 2208 | -9/Scraptown | Visited Assassins FH 2251 | -9/Scraptown | Visited UFD Registry 2251 | -9/Scraptown | Registered with UFD as "Autobank" 2304 | -9/Scraptown | Visited LU-1G1's Boring Crew 2695 | -9/Scraptown | Heard Great Nut preacher, LISTEN AND RECITE! 2722 | -9/Scraptown | Visited Spacefarers 2741 | -9/Scraptown | Visited Bundlers 2835 | -9/Scraptown | Visited Cyclists 2855 | -9/Scraptown | Entered Cyclist Reading Room 3004 | -9/Scraptown | Discovered new exit (range 9) 3142 | -9/Scraptown | Visited Abandonware Association 3203 | -9/Scraptown | Delivered Scrap Shield to a Scientist 3617 | -9/Scraptown | Visited Infowarlord's Domain 3654 | -9/Scraptown | Visited Derelict Rescue Squad 3662 | -9/Scraptown | Found DRS Beacon 3716 | -9/Scraptown | Visited Scrap Suit Storage 3761 | -9/Scraptown | Visited Research Penetration Think Tank 3804 | -9/Scraptown | Visited Science Testing Area 3865 | -9/Scraptown | Visited Science Guys 3979 | -9/Scraptown | Met Optimus 3979 | -9/Scraptown | Accepted into 0bPrime 4032 | -9/Scraptown | Civil war broke out across Scraptown 4106 | -9/Scraptown | Identified exit to Factory 4118 | -9/Scraptown | Found Exp. Signal Interpreter 4142 | -9/Scraptown | Core integrity fell below 50% 4164 | -9/Scraptown | Lost 17 allies 4185 | -9/Scraptown | Lost 3 parts (1p2u) 4318 | -9/Scraptown | Optimus destroyed in the chaos of civil war 4354 | -9/Scraptown | Core integrity fell below 20% 4355 | -9/Scraptown | Destroyed by K2-TEL(j) with Overtuned Pulse Rifle Last Messages --------------- 04341_ Acquired 10 matter. 04346_ Bolt penetrates Reinforced Barrier. 04346_ Penetrated by Bolt. 04349_ Myomer Leg destroyed. 04350_ Imp. Deuterium Engine destroyed. 04351_ Penetrated by Bolt. 04351_ Dropped Lrg. Storage Unit. 04351_ Mak. Hacking Suite crushed and broken. 04351_ Imp. Titanium Leg crushed and broken. 04351_ Mak. Hacking Suite crushed and broken. 04351_ Exp. Signal Interpreter crushed and broken. 04352_ Critical hit (Burn: +50). 04352_ Dropped Mak. Light Armor Plating. 04352_ Mak. Light Armor Plating crushed and broken. 04353_ Gauss Rifle destroyed. 04353_ Dropped Hvy. Battle Rifle. 04353_ Hvy. Battle Rifle crushed and broken. 04354_ Scrap Suit secures Ovr. Pulse Rifle. 04355_ Critical hit (Burn: +50). [Achievement: Just Browsing] Map ----- +----------------------------------------------------+ | #??# #?????#" X #?????#""!" "#??# | | #??# #?????#" X#?????#"""" """#??# | | #??# #?????# #?????#"" """"#??# | | #??# #?????#"# #"#?????# !!! ""#??# | | #??# ######### ###?????# " ""%[ ""#??# | | #??? ##" "#?????#&" ""== ""#??# | | #???? ##X "#?????#" #??# | | #?????? ##" "#?????# =![ "#??# | | #??????? ?# #?????########!####??#### | | ########## ########### ####???????#####[########## | | #???????#""""%%!%"" " | | #???????# %!!!=!%=/= [% | | #???????#" =!==[%!&[! ![ | | =[= #???????#!! !=!= *!%! [ | | ! *%! #???????# ==[!=== | | #################*%[ ! #???##### !!! !%= | | ######?########?#[=j h= #???#""" != %=%*""""" "" | | ##! #""" ""# #[%= %[ #???#"""" %%!%= """""""" | | ## = #"%" "##;=j* #???#"""" ![!%! "####"# | | ## ]/ ! ! ##;%! =*j[ #???#"""" ! "# | | ## !# "#?# = %![ #???#"""" !![% # | | ######## "#?#/! ! ###?#""" *=! "# " | | ##"" #?#%=% =!"#"#"""" !%! "# "" | | ##" /""#?#!!= [=[!&"""#"""" = ! "# " | | ##"" %"#?# =% !!=%!"####### =%"" " | | ## "#?# !%%@###?????# !"" !" | | ##""! ""#?#%! =!==!#########" ""# % | | ##"%[! ###! !%*=[ %=[[= ""# ""= | | ##""| "# ; !=!=!%!!*=!* != ""# "" | | ## # # *=![%![=[%[==! *%== ""# | | ## ##;g!!!!*!=[!!!!!%= !!!%! ""# | | #### #####"!%!;;#[!%!%TT[!%=%=[=!= * ""###### | | *[%gj=[!*=TT!=!!*!%%! = """"""""" | | *==p!%j%![j&=!=[[=! /%! """""""" | | j%[!=!!%!%!==[[! !! | | =%! j==!=[!=* !%! !* ![ ! | | =! !%= %=%[%[ ! %!%=* [%! !! | | % [=[![ ! != #""""#"= !*== !%= | | !==[*! %!*= /%[*%!#????#" !%= %!! | | !!%&! [%=!=!%[=!#????#" """ " [""""" | | #### #######*%###""!###*!=;###????####### ######## | | #??# !% #=!%[#???????????"""""????# | | #??# #%*!# ????????? #??# | | #??#" "==!/##???????# ##???? | | """"#??#" " #????????## ????? | | """""#??#" "" #?????????# #???? | | """""#??##""""""""""#" #?????????# ##???? | | """""#???#" "## #?????????# # #????? | | """"""#???## ### #?????????# # # ##????? | | """"""?????# #?# #?????????### ?# #?????? | +----------------------------------------------------+ Best States ------------- Heat Dissipation 25 Energy Generation 18 Energy Capacity 290 Matter Stores 300 Matter Capacity 300 Sight Range 16 Robot Scan Range 16 Terrain Scan Range 20 Terrain Scan Density 10 Armor Coverage 225 Evasion (%) 55 Item Schematics ----------------- None Robot Schematics ------------------ None Fabricated ------------ Nothing Repaired ---------- Nothing Alien Tech Used ----------------- None Achievements -------------- Just Browsing Challenges ------------ None Game ------ Seed SmartbombSmallRefractor Manual? 0 Play Time 00:59:11 Cumulative 25.5 hours Start 2025.05.12 @ 14:15:11 End 2025.05.13 @ 14:10:55 Sessions 3 Manual Loads 0 Difficulty Rogue Special Mode None Game No. 43 Rogue 42 Adventurer 1 Explorer 0 Win Type - Total 0 Types 0/0/0/0/0/0/0/0/0/0 Lore% 24 Gallery% 25 Achievement% 23 Wizard Run 0 Options --------- Layout 0 ASCII 0 Keyboard 0 Movement Mouse Keybinds 0 Fullscreen 2 Font 18/SmallcapsGlow Map View 76x50 Zoom Use 0% Tactical HUD 1 Map Filters NONE Filters NONE Steam 1 RUN: 9cc75f0a-701e-4741-ac55-7026d4cb0e79